bitfinex/quotes_ETHUSD_20240902
["timestamp","ask_amount","ask_price","bid_price","bid_amount"]
[1725299266108,3.95945,2525.6,2525.2,7.1058708]
[1725299266311,3.95911,2525.9,2525.3,0.07919486]
[1725299266616,3.95911,2525.9,2525.4,6.37353]
[1725299266922,3.95911,2525.9,2525.5,0.11607239]
[1725299267120,2.4175,2526.0,2525.5,4.1548576]
[1725299267448,3.95884,2526.0,2525.5,4.1548576]
[1725299268042,3.95875,2526.1,2525.6,3.95934]
[1725299268202,3.95875,2526.1,2525.6,5.01214976]
[1725299268404,3.95883,2526.0,2525.7,0.11596281]
[1725299268820,3.95883,2526.0,2525.7,0.11123685]
[1725299269400,4.46030225,2526.0,2525.8,0.11561034]
[1725299269702,4.46030225,2526.0,2525.5,3.95959]
[1725299269903,4.46030225,2526.0,2525.9,0.11184767]
[1725299270124,4.46030225,2526.0,2525.5,3.95959]
[1725299270764,3.95898,2525.9,2525.6,0.11195597]
[1725299271173,3.95898,2525.9,2525.4,40.98887206]
[1725299271369,3.95898,2525.9,2525.7,0.11190118]
[1725299271665,3.95942,2525.7,2525.4,29.6739]
[1725299271967,3.95942,2525.7,2525.2,26.30659]
[1725299272275,3.95942,2525.7,2525.2,30.32152556]
[1725299274073,3.95968,2525.5,2525.2,19.98]
[1725299274290,3.95968,2525.5,2525.0,3.9603]
[1725299274486,3.95968,2525.5,2525.0,7.97523556]
[1725299275075,3.96015,2525.2,2524.9,32.6266]
[1725299275556,3.95992,2525.3,2524.9,32.6266]
[1725299276246,3.95992,2525.3,2525.0,0.11228479]
[1725299279198,3.95973,2525.5,2525.1,3.96021]
[1725299279382,3.95932,2525.7,2525.2,3.95999]
[1725299279568,3.95915,2525.8,2525.3,6.45192]
[1725299279770,3.95903,2525.9,2525.4,3.95969]
[1725299279983,7.9181,2525.9,2525.4,4.07180459]
[1725299280190,7.91814,2525.9,2525.4,4.07180459]
[1725299281060,3.95922,2525.8,2525.4,0.11211459]
[1725299281257,3.95961,2525.5,2525.4,0.11211459]
[1725299281460,3.95961,2525.5,2525.1,3.96011]
[1725299281666,3.95944,2525.7,2525.3,3.95992]
[1725299281860,3.95944,2525.7,2525.4,0.11218466]
[1725299282262,7.91883,2525.7,2525.2,6.39707]
[1725299282466,3.95939,2525.7,2525.3,0.1122745]
[1725299282791,3.95939,2525.7,2524.9,3.0]
[1725299282792,3.95978,2525.4,2524.9,3.0]
[1725299283165,3.95978,2525.4,2524.7,29.5524]
[1725299283166,3.9601,2525.2,2524.7,29.5524]
[1725299283363,3.95992,2525.3,2524.7,29.5524]
[1725299283562,3.95992,2525.3,2524.8,7.97562556]
[1725299283967,3.95992,2525.3,2524.8,27.95562556]
[1725299284812,3.95992,2525.3,2524.8,31.91625556]
[1725299285512,2.3108,2525.6,2524.8,23.99493556]
[1725299285718,3.95892,2526.0,2525.3,6.2191]
[1725299286011,7.91788,2526.0,2525.4,4.03879361]
[1725299286166,3.95903,2525.9,2525.4,5.06458297]
[1725299288814,3.95903,2525.9,2525.5,3.9596]
[1725299289722,2.4519,2525.7,2525.3,3.9598]
[1725299290032,3.95918,2525.8,2525.4,6.36614]
[1725299290935,3.95918,2525.8,2525.5,0.11222097]
[1725299292807,3.95879,2526.1,2525.7,3.95927]
[1725299293143,3.95879,2526.1,2525.8,0.11180432]
[1725299293438,3.95879,2526.1,2525.7,4.77028758]
[1725299293595,3.95879,2526.1,2525.9,0.11174954]
[1725299293786,3.95879,2526.1,2525.8,0.11180432]
[1725299293987,3.95879,2526.1,2526.0,0.11169476]
[1725299294242,2.4519,2526.2,2525.7,3.95927]
[1725299294397,4.2454801,2526.3,2526.0,0.11169476]
[1725299294599,7.9165,2526.4,2525.9,3.95897]
[1725299294925,7.9165,2526.4,2526.0,0.11169476]
[1725299295097,3.95837,2526.3,2526.0,0.11169476]
[1725299297147,3.95865,2526.2,2526.0,0.11169476]
[1725299297314,3.95867,2526.1,2525.6,13.71545]
[1725299298703,3.95867,2526.1,2525.6,6.43545]
[1725299299432,6.43417,2526.1,2525.6,3.95935]
[1725299299911,2.4755,2527.3,2526.1,3.95865]
[1725299300145,3.95647,2527.6,2526.2,6.51368938]
[1725299300146,3.95781,2526.7,2526.2,6.51368938]
[1725299300312,7.91536,2526.8,2526.3,3.95833]
[1725299300619,3.95767,2526.8,2526.3,3.95833]
[1725299300824,0.643317,2526.7,2526.3,3.95833]
[1725299301229,3.95767,2526.8,2526.4,3.95819]
[1725299301597,3.95767,2526.8,2526.3,3.95835]
[1725299302015,7.91534,2526.8,2526.3,3.95835]
[1725299302338,8.954424,2526.8,2526.3,3.95835]
[1725299302536,3.95774,2526.7,2526.2,6.51374941]
[1725299302839,3.95792,2526.6,2526.2,3.95849]
[1725299303038,4.8533694,2526.6,2526.2,3.95849]
[1725299303942,6.39847,2526.5,2526.1,7.28]
[1725299304245,3.95843,2526.3,2526.1,7.28]
[1725299304429,6.39846,2526.5,2526.1,7.28]
[1725299304625,6.39846,2526.5,2525.9,19.98]
[1725299304829,3.95832,2526.4,2525.9,23.93891]
[1725299305442,3.95832,2526.4,2526.0,3.95882]
[1725299305803,3.95832,2526.4,2526.1,0.11072234]
[1725299306002,3.95837,2526.3,2526.1,0.11072234]
[1725299306238,3.95837,2526.3,2525.9,23.93896]
[1725299306447,3.95837,2526.3,2526.2,0.11066757]
[1725299306947,3.95837,2526.3,2525.9,27.95389556]
[1725299307134,3.95837,2526.3,2526.2,0.11066757]
[1725299307346,3.95837,2526.3,2525.9,19.98]
[1725299307502,3.95837,2526.3,2526.2,0.11066757]
[1725299307706,3.95837,2526.3,2525.9,19.98]
[1725299307904,3.95821,2526.4,2526.0,0.11077711]
[1725299308166,7.91652,2526.4,2526.0,0.11077711]
[1725299309161,3.95867,2526.1,2526.0,0.11077711]
[1725299309346,10.25624,2526.1,2526.0,0.11077711]
[1725299309851,3.95889,2526.0,2525.7,7.28]
[1725299313358,3.95914,2525.8,2525.7,7.28]
[1725299313563,3.95914,2525.8,2525.5,19.98]
[1725299317932,7.91837,2525.8,2525.5,19.98]
[1725299318129,3.95945,2525.6,2525.3,7.28]
[1725299318379,3.95945,2525.6,2525.0,33.70499]
[1725299318577,3.95945,2525.6,2525.1,3.0]
[1725299319174,3.95945,2525.6,2525.2,3.96006]
[1725299320204,3.95895,2526.0,2525.5,3.95954]
[1725299320372,6.41961,2526.1,2525.6,3.95929]
[1725299320534,3.95886,2526.0,2525.6,3.95929]
[1725299320742,6.41958,2526.1,2525.7,0.11148079]
[1725299320934,3.95852,2526.2,2525.7,2.46088079]
[1725299321137,3.95852,2526.2,2525.8,3.95911]
[1725299321579,9.2393621,2526.4,2525.9,4.07035123]
[1725299321580,3.9582,2526.4,2525.9,4.07035123]
[1725299321786,3.9582,2526.4,2525.9,8.10840111]
[1725299321953,3.95805,2526.5,2526.0,3.95878]
[1725299322473,3.95805,2526.5,2526.1,0.11119863]
[1725299324265,3.95822,2526.4,2526.1,0.11119863]
[1725299325985,7.91651,2526.4,2526.1,0.11119863]
[1725299326158,3.95835,2526.3,2526.1,0.11119863]
[1725299326512,3.95835,2526.3,2525.8,35.17806]
[1725299326639,3.95835,2526.3,2526.2,0.11066054]
[1725299326840,3.9586,2526.2,2525.8,27.26]
[1725299327087,3.95872,2526.1,2525.8,27.26]
[1725299327482,7.91724,2526.2,2525.8,27.26]
[1725299328096,7.91724,2526.2,2525.8,31.21913]
[1725299328097,3.9586,2526.2,2525.8,31.21913]
[1725299328299,3.9586,2526.2,2525.8,35.23406556]
[1725299331212,3.95813,2526.5,2526.0,3.95881]
[1725299332843,5.40258301,2526.5,2526.0,3.95881]
[1725299333041,3.95823,2526.4,2526.0,3.95881]
[1725299334712,5.40258301,2526.5,2526.0,3.95881]
[1725299334917,7.91632,2526.5,2526.0,3.95881]
[1725299335299,3.95813,2526.5,2526.1,3.95866]
[1725299335514,2.2829,2526.6,2526.1,3.95866]
[1725299335715,6.43469,2526.8,2526.2,4.14832463]
[1725299336002,6.43469,2526.8,2526.2,4.06916155]
[1725299336417,3.9579,2526.6,2526.2,0.11068155]
[1725299337660,3.95835,2526.3,2526.2,0.11068155]
[1725299338074,3.95835,2526.3,2525.8,6.95912]
[1725299338270,3.95835,2526.3,2526.2,0.11059054]
[1725299338777,3.95835,2526.3,2525.9,3.95898]
[1725299339010,3.95835,2526.3,2526.2,0.11062555]
[1725299339283,3.95835,2526.3,2525.9,3.95898]
[1725299339491,4.2454801,2526.6,2526.2,0.11062555]
[1725299339492,3.95806,2526.5,2526.2,0.11062555]
[1725299339790,3.95806,2526.5,2526.3,0.11061281]
[1725299340287,3.95806,2526.5,2526.0,6.28668]
[1725299340444,3.95806,2526.5,2526.4,0.11055805]
[1725299340646,3.95806,2526.5,2526.0,6.28668]
[1725299340847,3.95806,2526.5,2526.4,0.11053704]
[1725299341041,7.91618,2526.5,2526.0,6.28668]
[1725299341285,3.95806,2526.5,2526.4,0.11053704]
[1725299341446,7.91618,2526.5,2526.0,6.28668]
[1725299341789,3.95806,2526.5,2526.0,6.28665]
[1725299341956,3.95787,2526.7,2526.2,3.95842]
[1725299342373,3.95787,2526.7,2526.3,0.11057779]
[1725299342889,5.42038601,2526.7,2526.3,0.11057779]
[1725299343194,3.95796,2526.6,2526.3,0.11057779]
[1725299344197,3.95796,2526.6,2526.2,3.95851]
[1725299344376,3.95796,2526.6,2526.4,0.11046701]
[1725299344551,5.42038601,2526.7,2526.3,0.11052177]
[1725299344752,3.95785,2526.7,2526.5,0.11041225]
[1725299344973,3.95782,2526.7,2526.4,0.11046701]
[1725299345175,5.42035401,2526.7,2526.6,0.11035751]
[1725299345406,5.42035401,2526.7,2526.5,0.11041225]
[1725299345589,3.95782,2526.7,2526.6,0.11035751]
[1725299346023,3.95782,2526.7,2526.2,3.95843]
[1725299346213,3.95782,2526.7,2526.6,0.11035751]
[1725299346522,5.42035401,2526.7,2526.6,0.11035751]
[1725299346741,5.42035401,2526.7,2526.2,3.95843]
[1725299347024,5.42035401,2526.7,2526.6,0.11035751]
[1725299347204,5.42035401,2526.7,2526.2,3.95843]
[1725299347381,5.42035401,2526.7,2526.6,0.11035751]
[1725299347587,5.42035401,2526.7,2526.2,3.95843]
[1725299347898,3.95782,2526.7,2526.2,3.95843]
[1725299348102,3.95782,2526.7,2526.3,0.11052177]
[1725299349719,3.95782,2526.7,2526.3,4.06886177]
[1725299351382,2.3589,2527.1,2526.6,3.9578]
[1725299351593,2.3589,2527.4,2527.1,3.95707]
[1725299351812,2.3847,2527.6,2527.1,7.91409]
[1725299352020,3.17596,2527.6,2527.2,4.06663498]
[1725299352384,2.3847,2527.6,2527.2,0.10973498]
[1725299352826,6.6301801,2527.6,2527.2,0.10973498]
[1725299353033,7.9135,2527.4,2527.2,0.10973498]
[1725299353332,3.95674,2527.4,2526.7,6.22147]
[1725299353530,5.41110801,2527.4,2526.8,3.95746]
[1725299353897,5.41110801,2527.4,2526.9,0.10989917]
[1725299354396,5.41108801,2527.4,2526.9,0.10989917]
[1725299354730,3.95672,2527.4,2526.9,0.10989917]
[1725299355033,7.91343,2527.4,2526.9,0.10989917]
[1725299355604,3.95703,2527.2,2526.9,0.10989917]
[1725299355810,3.95711,2527.1,2526.9,0.10989917]
[1725299356011,3.95711,2527.1,2526.7,3.0]
[1725299356214,2.2685,2527.2,2527.0,0.10937547]
[1725299356411,2.2685,2527.2,2526.7,6.95772]
[1725299356412,6.22545,2527.2,2526.7,6.95772]
[1725299356612,6.22545,2527.2,2527.1,0.10932074]
[1725299356815,6.22545,2527.2,2526.7,6.95772]
[1725299356816,7.66822801,2527.2,2526.7,6.95772]
[1725299357024,6.22545,2527.2,2527.1,0.10935573]
[1725299357237,6.22545,2527.2,2526.7,3.95772]
[1725299357747,3.95712,2527.1,2526.8,0.10952693]
[1725299357915,3.95712,2527.1,2526.5,6.38892]
[1725299357916,3.95726,2527.0,2526.6,3.95784]
[1725299358109,3.95726,2527.0,2526.7,0.10960966]
[1725299358312,3.95745,2526.9,2526.5,3.95795]
[1725299358646,3.95726,2527.0,2526.6,0.1096714]
[1725299358851,7.91464,2527.0,2526.6,0.1096714]
[1725299359046,3.95744,2526.9,2526.6,0.1096714]
[1725299359342,3.95744,2526.9,2526.4,3.95818]
[1725299359559,3.95726,2527.0,2526.5,4.06730811]
[1725299359713,3.95726,2527.0,2526.5,5.84095292]
[1725299360432,3.95726,2527.0,2526.5,9.79892292]
[1725299360616,3.95726,2527.0,2526.5,9.79884292]
[1725299361153,3.95726,2527.0,2526.5,4.06722811]
[1725299362041,6.22552,2527.2,2526.7,3.95765]
[1725299362452,6.22552,2527.2,2526.8,0.10920486]
[1725299362631,3.95663,2527.4,2526.9,3.95728]
[1725299363015,3.95663,2527.4,2527.0,0.10909539]
[1725299364046,7.91307,2527.5,2527.0,6.48176539]
[1725299364263,3.95649,2527.5,2527.0,6.48176539]
[1725299364464,3.95633,2527.6,2527.1,3.95698]
[1725299364663,3.95633,2527.6,2527.1,4.03611402]
[1725299364867,3.95633,2527.6,2527.2,0.10899294]
[1725299366227,7.91273,2527.6,2527.2,0.10899294]
[1725299366779,3.95649,2527.5,2527.2,0.10899294]
[1725299367652,3.95633,2527.6,2527.2,0.10899294]
[1725299368025,7.91274,2527.6,2527.2,0.10899294]
[1725299368224,3.95633,2527.6,2527.2,0.10899294]
[1725299368771,7.91278,2527.6,2527.2,0.10899294]
[1725299369328,3.95633,2527.6,2527.2,0.10899294]
[1725299369841,3.95489269,2527.6,2527.2,0.10899294]
[1725299370349,7.91133269,2527.6,2527.2,0.10899294]
[1725299371699,7.91131269,2527.6,2527.2,0.10899294]
[1725299372037,3.95489269,2527.6,2527.2,0.10899294]
[1725299373332,3.95489269,2527.6,2527.2,4.89915409]
[1725299374366,3.95489269,2527.6,2527.2,0.10899294]
[1725299374779,3.95648,2527.5,2527.2,0.10899294]
[1725299374985,3.95679,2527.3,2527.2,0.10899294]
[1725299375279,6.30689,2527.3,2527.2,0.10899294]
[1725299375440,6.30689,2527.3,2526.9,11.2373]
[1725299375644,6.30689,2527.3,2526.9,11.038343]
[1725299375645,3.95679,2527.3,2526.9,11.038343]
[1725299375842,3.95679,2527.3,2527.0,0.10875952]
[1725299376047,10.3843,2527.1,2527.0,0.10875952]
[1725299376354,3.95752,2526.9,2526.4,2.4588]
[1725299376561,3.95751,2526.9,2526.5,0.10163502]
[1725299376753,3.9575,2526.9,2526.5,0.10163502]
[1725299377078,3.9575,2526.9,2526.5,4.05964502]
[1725299377288,3.95721,2527.1,2526.7,3.95769]
[1725299377638,3.95721,2527.1,2526.8,0.10171567]
[1725299378201,3.95721,2527.1,2526.9,0.10177991]
[1725299378652,3.95721,2527.1,2526.7,4.88374595]
[1725299378847,3.95721,2527.1,2527.0,0.10172517]
[1725299379093,3.95721,2527.1,2526.7,4.88374595]
[1725299379264,7.9144,2527.1,2527.0,0.10171118]
[1725299379444,7.91438,2527.1,2526.6,5.3027095]
[1725299379642,3.95719,2527.1,2527.0,0.10171118]
[1725299380081,3.95719,2527.1,2526.6,3.95786]
[1725299380269,7.9142,2527.1,2527.0,0.10168318]
[1725299380469,3.9571,2527.1,2526.5,35.1759]
[1725299380769,3.95688,2527.3,2526.8,6.22847]
[1725299380970,3.95688,2527.3,2526.9,0.10173791]
[1725299381158,3.95688,2527.3,2526.9,4.6921187]
[1725299381357,6.30457,2527.5,2527.0,3.95725]
[1725299381584,3.95657,2527.5,2527.1,0.10159346]
[1725299381882,3.95657,2527.5,2527.1,0.57077188]
[1725299382241,7.91258,2527.7,2527.1,4.52779188]
[1725299382708,3.95626,2527.7,2527.2,3.95691]
[1725299383011,2.348,2527.8,2527.4,3.95662]
[1725299383312,3.95594,2527.9,2527.4,3.95655]
[1725299383462,3.95594,2527.9,2527.5,0.10137459]
[1725299384677,8.2011101,2528.1,2527.5,4.05773459]
[1725299384904,3.95563,2528.1,2527.6,3.95631]
[1725299385402,3.95563,2528.1,2527.7,0.1010273]
[1725299386079,3.9554,2528.2,2527.7,0.1010273]
[1725299386278,6.95532,2528.3,2527.7,0.1010273]
[1725299386279,3.95532,2528.3,2527.7,0.1010273]
[1725299386493,3.95532,2528.3,2527.8,3.95588]
[1725299386721,3.95501,2528.5,2527.9,3.9558]
[1725299386881,3.95507,2528.4,2527.9,4.05661996]
[1725299387589,3.95501,2528.5,2528.0,3.95567]
[1725299387889,3.95501,2528.5,2528.0,10.47089609]
[1725299388088,3.95493,2528.5,2528.1,0.10071059]
[1725299389300,3.95524,2528.3,2528.1,0.10071059]
[1725299389623,3.95524,2528.3,2528.2,0.10065591]
[1725299389986,3.95524,2528.3,2527.8,5.04958085]
[1725299390186,3.95524,2528.3,2528.2,0.10065591]
[1725299390480,3.95524,2528.3,2527.8,5.04958085]
[1725299390800,3.95508,2528.4,2528.0,3.95567]
[1725299391324,3.95493,2528.5,2528.1,0.10071059]
[1725299391627,3.95508,2528.4,2528.1,0.10071059]
[1725299391985,3.95508,2528.4,2527.9,4.76327793]
[1725299392186,3.95493,2528.5,2528.2,0.10065591]
[1725299392507,7.90996,2528.5,2528.0,6.82559679]
[1725299392707,3.95507,2528.4,2528.3,0.10060123]
[1725299392911,3.95492,2528.5,2528.0,3.95559]
[1725299393224,10.5890101,2528.7,2528.2,3.95529]
[1725299393428,8.2001101,2528.7,2528.2,3.95529]
[1725299393626,3.95463,2528.7,2528.3,0.10060123]
[1725299393996,6.6579801,2528.9,2528.3,0.10060123]
[1725299393997,10.6123301,2528.9,2528.3,0.07910286]
[1725299394232,3.95392,2529.2,2528.5,6.3083]
[1725299394408,0.126129,2529.3,2529.1,3.95385]
[1725299394741,0.126129,2529.3,2529.2,3.95381]
[1725299394945,0.126129,2529.3,2529.2,4.05336689]
[1725299395100,0.126129,2529.3,2529.2,5.08943858]
[1725299395298,0.126129,2529.3,2529.2,9.04324858]
[1725299396042,0.126129,2529.3,2529.2,5.08943858]
[1725299396240,0.126129,2529.3,2529.2,1.13562858]
[1725299397104,0.126129,2529.3,2529.2,0.09955689]
[1725299397339,12.2789291,2529.3,2529.2,0.09955689]
[1725299397538,3.95417,2529.0,2528.5,3.9549]
[1725299397720,4.2454801,2529.0,2528.5,3.9549]
[1725299397917,8.1994101,2529.2,2528.7,3.95458]
[1725299398120,3.95427,2529.0,2528.8,0.09461788]
[1725299398337,3.95425,2529.0,2528.8,0.09461788]
[1725299398503,3.95417,2529.0,2528.9,0.09456323]
[1725299398705,7.90834,2529.0,2528.9,0.09456323]
[1725299398907,3.95429,2528.9,2528.4,6.30847]
[1725299399203,3.95417,2529.0,2528.5,0.09478186]
[1725299399444,3.95451,2528.8,2528.5,0.09478186]
[1725299399625,3.95451,2528.8,2528.5,0.36314505]
[1725299400847,3.95448,2528.8,2528.5,0.36314505]
[1725299401157,7.90871,2528.9,2528.5,0.09478186]
[1725299401348,7.9087,2528.9,2528.5,0.09478186]
[1725299401504,3.95429,2528.9,2528.5,0.09478186]
[1725299401723,3.95447,2528.8,2528.5,0.09478186]
[1725299401923,3.95429,2528.9,2528.5,0.75865605]
[1725299402252,3.95408,2529.1,2528.5,4.79256355]
[1725299402253,3.95413,2529.0,2528.5,4.79256355]
[1725299402425,3.95413,2529.0,2528.5,4.71347605]
[1725299402620,3.95468,2528.7,2528.5,0.09478186]
[1725299403065,3.9543,2528.9,2528.3,7.28]
[1725299403261,6.5540801,2529.2,2528.6,4.0493872]
[1725299403262,4.2454801,2529.2,2528.6,4.0493872]
[1725299403425,8.1994101,2529.2,2528.7,4.03362402]
[1725299403620,4.2454801,2529.2,2528.7,4.04913254]
[1725299403822,4.2454801,2529.2,2528.8,0.80037925]
[1725299404027,8.1993001,2529.2,2528.8,0.80037925]
[1725299404253,8.1993001,2529.2,2528.9,0.09475852]
[1725299404455,4.2454801,2529.2,2528.9,0.09475852]
[1725299404660,0.126129,2529.3,2528.9,0.09475852]
[1725299404970,0.126129,2529.3,2529.0,0.09470388]
[1725299405328,0.126129,2529.3,2529.1,2.3497]
[1725299405561,0.126129,2529.3,2529.1,2.44427251]
[1725299405721,0.126129,2529.3,2529.1,2.52334232]
[1725299406731,4.079839,2529.3,2529.1,0.09457251]
[1725299406966,0.126129,2529.3,2529.1,0.09457251]
[1725299407141,0.126129,2529.3,2529.1,2.40202976]
[1725299407341,4.079809,2529.3,2529.1,2.40202976]
[1725299408768,0.126129,2529.3,2529.2,2.4212]
[1725299408975,3.95381,2529.2,2529.1,2.30745725]
[1725299409148,3.95413,2529.0,2528.9,19.98]
[1725299409333,7.90826,2529.0,2528.9,19.98]
[1725299409532,7.9092,2528.7,2528.6,7.28]
[1725299409756,7.9095,2528.6,2528.5,19.98]
[1725299409959,11.86425,2528.6,2528.5,19.98]
[1725299410134,7.91044,2528.3,2528.2,7.28]
[1725299410661,7.91044,2528.3,2528.2,7.37512721]
[1725299411056,7.91044,2528.3,2528.2,10.11063993]
[1725299412075,7.91044,2528.3,2528.2,7.37512721]
[1725299412378,7.91044,2528.3,2528.2,0.09512721]
[1725299412684,7.91106,2528.1,2528.0,19.98]
[1725299413026,3.95593,2527.9,2527.7,19.98]
[1725299413277,7.91193,2527.9,2527.7,19.98]
[1725299413482,3.956,2527.8,2527.7,19.98]
[1725299413640,3.95541,2528.2,2527.3,27.26]
[1725299413641,3.95642,2527.6,2527.3,27.26]
[1725299413840,3.95616,2527.7,2527.4,22.94637]
[1725299414871,3.95595,2527.9,2527.5,0.07912137]
[1725299415097,3.95616,2527.8,2527.4,22.94637]
[1725299415252,3.95616,2527.8,2527.5,2.690314]
[1725299415795,3.95625,2527.7,2527.5,2.690314]
[1725299416448,3.95667,2527.4,2527.2,25.3837]
[1725299416648,7.91287,2527.6,2527.2,25.3837]
[1725299416852,3.95648,2527.5,2527.3,2.53837]
[1725299417486,3.95641,2527.6,2527.3,2.53837]
[1725299418008,3.95665,2527.4,2527.2,19.98]
[1725299419481,3.95638,2527.6,2527.0,7.28]
[1725299419683,3.95684,2527.3,2527.0,7.28]
[1725299419994,3.95704,2527.2,2527.0,7.28]
[1725299420378,3.9571,2527.1,2527.0,7.28]
[1725299420957,3.9573,2527.0,2526.8,22.98]
[1725299421194,3.9573,2527.0,2526.8,2.298]
[1725299421396,7.91469,2527.0,2526.6,27.26]
[1725299421705,3.95742,2526.9,2526.6,27.26]
[1725299421993,3.9576,2526.8,2526.6,27.26]
[1725299422205,3.95773,2526.7,2526.6,27.26]
[1725299423286,3.95773,2526.7,2526.6,29.986]
[1725299423601,7.91499,2526.9,2526.6,29.986]
[1725299424052,7.91492,2526.9,2526.6,29.986]
[1725299424268,3.95742,2526.9,2526.6,29.986]
[1725299424717,3.95758,2526.8,2526.6,29.986]
[1725299424897,3.95758,2526.8,2526.6,27.26]
[1725299425616,3.95758,2526.8,2526.7,0.09159447]
[1725299426042,3.95741,2527.0,2526.7,0.09159447]
[1725299426317,3.95723,2527.1,2526.7,0.09159447]
[1725299426488,3.95723,2527.1,2526.7,3.22254592]
[1725299427120,3.95721,2527.1,2526.7,3.22254592]
[1725299427415,7.91442,2527.1,2526.7,3.22254592]
[1725299427624,3.95721,2527.1,2526.7,3.22254592]
[1725299427921,3.95674,2527.4,2526.7,13.49417592]
[1725299428124,3.95674,2527.4,2526.8,3.44403259]
[1725299428415,7.91378,2527.3,2526.8,7.40152259]
[1725299428724,6.6987801,2527.6,2526.9,0.08968669]
[1725299428725,3.95665,2527.4,2526.9,0.08968669]
[1725299428939,3.95665,2527.4,2526.9,4.12616625]
[1725299429620,3.95701,2527.2,2526.9,0.08968669]
[1725299430178,3.95701,2527.2,2527.0,0.08963195]
[1725299430390,3.95701,2527.2,2526.8,4.01493556]
[1725299430593,3.95701,2527.2,2526.9,0.08968669]
[1725299430992,3.95726,2527.0,2526.9,0.08968669]
[1725299431320,7.91452,2527.0,2526.9,0.08968669]
[1725299431480,3.95754,2526.9,2526.6,27.26]
[1725299431894,3.95726,2527.0,2526.6,27.26]
[1725299432094,7.91416,2527.2,2526.7,6.98372]
[1725299432714,3.95711,2527.1,2526.7,26.96372]
[1725299433049,3.95706,2527.2,2526.8,3.424372]
[1725299433228,3.95703,2527.2,2526.8,3.424372]
[1725299433521,7.91408,2527.2,2526.8,3.424372]
[1725299434419,3.95712,2527.1,2526.8,3.424372]
[1725299434810,3.95712,2527.1,2526.9,2.3404372]
[1725299435174,3.95703,2527.2,2526.6,3.95782]
[1725299435382,4.2454801,2527.0,2526.3,2.4773]
[1725299435622,3.95789,2526.6,2526.3,6.420874]
[1725299435829,3.95789,2526.6,2526.3,5.4773]
[1725299435980,3.95789,2526.6,2526.3,2.4773]
[1725299437107,3.9582,2526.4,2526.2,3.0]
[1725299437421,3.9582,2526.4,2526.2,0.3]
[1725299437629,3.95805,2526.5,2526.2,0.3]
[1725299439540,3.95789,2526.6,2526.2,0.3]
[1725299440647,3.95789,2526.6,2526.3,0.13981201]
[1725299441160,3.95805,2526.5,2526.3,0.13981201]
[1725299441365,3.9579,2526.6,2526.3,0.13981201]
[1725299441562,3.9579,2526.6,2526.3,0.87965621]
[1725299442258,3.95769,2526.8,2526.3,4.83797621]
[1725299443534,8.2028201,2527.0,2526.4,3.9581]
[1725299443863,3.95704,2527.2,2526.7,3.95772]
[1725299444414,3.95704,2527.2,2526.8,0.14015023]
[1725299444665,3.95704,2527.2,2526.7,3.95772]
[1725299444862,3.95675,2527.4,2526.9,4.09743352]
[1725299445064,3.95672,2527.4,2526.9,3.95734]
[1725299445359,3.95672,2527.4,2527.0,0.14003682]
[1725299445517,3.95672,2527.4,2527.0,1.1710645]
[1725299445718,3.9568,2527.3,2527.0,1.1710645]
[1725299447658,3.95696,2527.2,2527.0,0.14003682]
[1725299447869,3.9571,2527.1,2527.0,0.14003682]
[1725299448019,3.9571,2527.1,2526.7,7.28]
[1725299448217,3.9571,2527.1,2526.7,11.29493556]
[1725299448448,3.9571,2527.1,2526.8,0.14015023]
[1725299448834,3.9571,2527.1,2526.7,15.25264556]
[1725299449046,3.9571,2527.1,2526.8,0.14015023]
[1725299449365,3.9571,2527.1,2526.8,2.21612151]
[1725299449564,3.9571,2527.1,2526.8,2.07597128]
[1725299449721,3.9571,2527.1,2526.9,0.14009352]
[1725299450123,3.9571,2527.1,2526.7,15.25264556]
[1725299450323,3.9571,2527.1,2527.0,0.14003682]
[1725299450524,3.9571,2527.1,2526.7,15.25264556]
[1725299450719,3.9571,2527.1,2527.0,0.14003682]
[1725299450923,3.9571,2527.1,2526.7,15.25264556]
[1725299451165,3.9571,2527.1,2527.0,0.14003682]
[1725299451366,3.9571,2527.1,2526.7,15.25264556]
[1725299452367,3.9571,2527.1,2526.8,0.14015023]
[1725299452754,3.9571,2527.1,2526.7,15.25262556]
[1725299452927,3.9571,2527.1,2526.9,0.14009352]
[1725299453270,7.91429,2527.1,2527.0,0.14003682]
[1725299453769,6.3417,2527.1,2527.0,0.14003682]
[1725299453955,6.3417,2527.1,2526.7,7.28]
[1725299454128,6.3417,2527.1,2527.0,0.13979229]
[1725299454342,6.3417,2527.1,2526.7,11.29493556]
[1725299454539,6.3417,2527.1,2527.0,0.13829229]
[1725299454745,6.3417,2527.1,2526.7,11.29493556]
[1725299455235,6.3417,2527.1,2526.8,0.13840569]
[1725299455441,6.3417,2527.1,2526.7,11.29493556]
[1725299455674,6.3417,2527.1,2526.8,0.13840569]
[1725299456182,4.2454801,2527.3,2526.8,7.2570511]
[1725299456183,3.95679,2527.3,2526.8,7.2570511]
[1725299456389,3.95679,2527.3,2526.9,6.55304899]
[1725299456554,10.5865301,2527.6,2526.9,6.55304899]
[1725299456555,3.95665,2527.4,2526.9,6.55304899]
[1725299456741,3.95665,2527.4,2526.9,12.619414]
[1725299457067,3.95665,2527.4,2527.0,0.07913657]
[1725299457242,3.95665,2527.4,2527.0,4.17465886]
[1725299458145,14.5429901,2527.6,2527.0,4.17465886]
[1725299458271,10.5865201,2527.6,2527.1,1.26983239]
[1725299458470,10.5865201,2527.6,2527.1,1.40806798]
[1725299459484,14.5429701,2527.6,2527.1,1.40806798]
[1725299459681,6.34104,2527.6,2527.1,5.36508798]
[1725299459886,6.34073,2527.8,2527.4,3.95661]
[1725299460104,8.2016201,2527.8,2527.3,3.9567]
[1725299460301,8.2016201,2527.8,2527.5,0.13761762]
[1725299460606,8.2016201,2527.8,2527.3,7.91342]
[1725299460756,8.2016201,2527.8,2527.6,0.13747714]
[1725299460957,8.2016201,2527.8,2527.3,7.9134]